bitfinex-derivatives/quotes_BTCF0:USTF0_20241214
["timestamp","ask_amount","ask_price","bid_price","bid_amount"]
[1734141707399,0.49260871,102080.0,102070.0,0.29317106]
[1734141707608,0.49260871,102080.0,102070.0,0.00012105]
[1734141709605,0.49260871,102080.0,102070.0,0.00062105]
[1734141710108,0.49260871,102080.0,102070.0,5e-08]
[1734141710306,0.73635781,102080.0,102070.0,5e-08]
[1734141710604,0.64840707,102080.0,102070.0,5e-08]
[1734141711399,0.048992,102050.0,102040.0,0.09208078]
[1734141711602,0.04908112,102050.0,102040.0,0.38513079]
[1734141711804,0.04908112,102050.0,102040.0,0.74593079]
[1734141712195,0.04908112,102050.0,102040.0,0.45288078]
[1734141712604,0.04908112,102050.0,102040.0,0.09208078]
[1734141712903,0.04908112,102050.0,102040.0,0.09388525]
[1734141713103,0.04908112,102050.0,102040.0,0.45468525]
[1734141713306,0.04908112,102050.0,102040.0,0.50368125]
[1734141713823,0.13191283,102050.0,102040.0,0.44470447]
[1734141714008,0.13191283,102050.0,102040.0,0.44650871]
[1734141714313,0.49271283,102050.0,102040.0,0.00360871]
[1734141715000,0.49271283,102050.0,102040.0,0.00541295]
[1734141716202,0.57491283,102050.0,102040.0,0.00721719]
[1734141716403,0.57491283,102050.0,102010.0,0.04901]
[1734141716702,0.13183271,102030.0,102020.0,0.0397]
[1734141716897,0.49263271,102030.0,102020.0,0.0397]
[1734141717300,0.5755766,102030.0,102020.0,0.04150443]
[1734141717499,0.5755766,102030.0,102020.0,0.00180443]
[1734141718006,0.49274489,102030.0,102020.0,0.00180443]
[1734141718504,0.49274489,102030.0,102020.0,0.00360867]
[1734141718706,0.40991318,102030.0,102020.0,0.04330867]
[1734141718907,0.04911318,102030.0,102020.0,0.04330867]
[1734141719103,0.04911318,102030.0,102020.0,0.04511291]
[1734141719299,0.13194489,102030.0,102020.0,0.04511291]
[1734141719499,0.49274489,102030.0,102020.0,0.04511291]
[1734141720903,0.40991318,102030.0,102020.0,0.0469093]
[1734141721108,0.40991318,102030.0,102020.0,0.0959153]
[1734141721109,0.04911318,102030.0,102020.0,0.0959153]
[1734141722106,0.04911318,102030.0,102020.0,0.09771169]
[1734141723415,0.13194489,102030.0,102020.0,0.09771169]
[1734141723905,0.04911318,102030.0,102020.0,0.45851169]
[1734141724509,0.04911318,102030.0,102020.0,0.45901169]
[1734141724710,0.00011218,102030.0,102020.0,0.5418434]
[1734141724908,0.04911318,102030.0,102020.0,0.45901169]
[1734141726609,0.04911318,102030.0,102020.0,0.46880269]
[1734141726919,0.409793,102050.0,102040.0,0.048996]
[1734141727211,0.048993,102050.0,102040.0,0.41880169]
[1734141727619,0.048993,102050.0,102040.0,0.46150169]
[1734141728820,0.048993,102050.0,102040.0,0.41250569]
[1734141729015,0.048993,102050.0,102040.0,0.05170569]
[1734141729322,0.048993,102050.0,102040.0,0.46150169]
[1734141729816,0.048993,102050.0,102040.0,0.47146987]
[1734141731722,0.048987,102060.0,102050.0,0.048991]
[1734141732014,0.048987,102060.0,102050.0,0.450491]
[1734141732215,0.048987,102060.0,102050.0,0.45949669]
[1734141732712,0.41978046,102070.0,102060.0,0.048987]
[1734141732919,0.409783,102070.0,102060.0,0.048987]
[1734141733117,0.36355032,102080.0,102060.0,0.36980569]
[1734141733316,0.41252932,102080.0,102060.0,0.36980569]
[1734141733517,0.0005,102070.0,102060.0,0.41879069]
[1734141734617,0.048982,102070.0,102060.0,0.41879069]
[1734141735221,0.048982,102070.0,102060.0,0.05799069]
[1734141735517,0.13231371,102070.0,102060.0,0.00900569]
[1734141735815,0.049482,102070.0,102060.0,0.05799269]
[1734141736511,0.048982,102070.0,102060.0,0.00900569]
[1734141736708,0.49261371,102070.0,102060.0,0.00900569]
[1734141737633,0.49311371,102070.0,102060.0,0.00900569]
[1734141738016,0.3608,102050.0,102040.0,0.34171819]
[1734141738325,0.3608,102030.0,102000.0,0.01935303]
[1734141738521,0.94095758,102010.0,102000.0,0.01935303]
[1734141738717,0.049015,102000.0,101980.0,0.01472]
[1734141739022,0.049015,102000.0,101980.0,0.2746485]
[1734141739023,0.44363171,101990.0,101980.0,0.2746485]
[1734141739519,0.44374668,101990.0,101980.0,0.04389537]
[1734141740224,0.44374668,101990.0,101980.0,0.0538884]
[1734141740426,0.00011497,101990.0,101980.0,0.73450978]
[1734141740620,0.00011497,101990.0,101980.0,0.99198512]
[1734141740820,0.08294668,101990.0,101980.0,0.99198512]
[1734141741125,0.00011497,101990.0,101980.0,0.99198512]
[1734141741320,0.00011497,101990.0,101980.0,1.03538512]
[1734141741621,0.00011497,101990.0,101980.0,0.99252023]
[1734141742017,0.00011497,101990.0,101980.0,0.69252023]
[1734141743219,0.17373597,101990.0,101980.0,0.02085186]
[1734141743416,0.17373597,101990.0,101980.0,0.06371675]
[1734141743623,0.17373597,101990.0,101980.0,0.00103048]
[1734141743917,0.53453597,101990.0,101980.0,0.00103048]
[1734141744822,0.40993497,101990.0,101980.0,0.00103048]
[1734141745218,0.53453597,101990.0,101980.0,0.00103048]
[1734141746118,0.40993497,101990.0,101980.0,0.00103048]
[1734141746323,0.53453597,101990.0,101980.0,0.00103048]
[1734141746919,0.40993497,101990.0,101980.0,0.00103048]
[1734141747230,0.04913497,101990.0,101980.0,0.00103048]
[1734141749816,0.04913497,101990.0,101980.0,0.36183048]
[1734141750727,0.04913497,101990.0,101980.0,0.40253048]
[1734141752229,0.04913497,101990.0,101980.0,0.04173048]
[1734141753622,0.53453597,101990.0,101980.0,0.00103048]
[1734141753827,0.65513597,101990.0,101980.0,0.00103048]
[1734141754124,0.049035,101960.0,101940.0,0.46746969]
[1734141754425,0.049035,101960.0,101940.0,0.72814095]
[1734141755225,0.049035,101960.0,101950.0,0.3608]
[1734141755424,0.049035,101960.0,101950.0,0.42936262]
[1734141756827,0.049035,101960.0,101950.0,0.38032362]
[1734141757133,0.049035,101960.0,101950.0,0.01952362]
[1734141761834,0.049035,101960.0,101950.0,0.42936262]
[1734141765531,0.049035,101960.0,101950.0,0.42986262]
[1734141765834,0.37067317,101980.0,101960.0,0.049034]
[1734141766030,0.049025,101980.0,101970.0,0.409828]
[1734141766230,0.17120732,101990.0,101970.0,0.451328]
[1734141766631,0.049024,101980.0,101970.0,0.090528]
[1734141766937,0.049024,101980.0,101970.0,0.049028]
[1734141767334,0.049024,101980.0,101970.0,0.409828]
[1734141768236,0.049024,101980.0,101970.0,0.45273469]
[1734141768439,0.049024,101980.0,101970.0,0.68718603]
[1734141769532,0.049024,101980.0,101970.0,0.64427934]
[1734141770842,0.409824,101980.0,101970.0,0.23445134]
[1734141771137,0.49293845,101980.0,101970.0,0.27735803]
[1734141771339,0.409824,101980.0,101970.0,0.27735803]
[1734141771843,0.409824,101980.0,101970.0,0.28135803]
[1734141773334,0.49293845,101980.0,101970.0,0.28135803]
[1734141773735,0.409824,101980.0,101970.0,0.28135803]
[1734141774642,0.49293845,101980.0,101970.0,0.28135803]
[1734141775043,0.409824,101980.0,101970.0,0.28135803]
[1734141775336,0.69714581,101980.0,101970.0,0.04690669]
[1734141775735,0.69702164,101980.0,101970.0,0.04690669]
[1734141776336,0.61390719,101980.0,101970.0,0.04690669]
[1734141776533,0.52650916,101980.0,101970.0,0.04690669]
[1734141776736,0.52650916,101980.0,101970.0,0.004]
[1734141776938,0.16570916,101980.0,101970.0,0.004]
[1734141777337,0.25309405,101980.0,101970.0,0.004]
[1734141777537,0.16570916,101980.0,101970.0,0.004]
[1734141777939,0.25309954,101980.0,101970.0,0.004]
[1734141780251,0.25309954,101980.0,101970.0,0.046907]
[1734141780544,0.25309954,101980.0,101970.0,0.004]
[1734141780943,0.25309954,101980.0,101970.0,0.28747834]
[1734141781145,0.13641438,101980.0,101970.0,0.64827834]
[1734141781439,0.13641438,101980.0,101970.0,0.69118351]
[1734141781631,0.13641438,101980.0,101970.0,0.64215651]
[1734141782448,0.13641438,101980.0,101970.0,0.28135651]
[1734141782747,0.25309954,101980.0,101970.0,0.64215651]
[1734141783633,0.25309954,101980.0,101970.0,0.69118351]
[1734141784851,0.13641438,101980.0,101970.0,0.69118351]
[1734141786450,0.08739038,101980.0,101970.0,0.98446866]
[1734141786639,0.29310851,101990.0,101970.0,0.87253177]
[1734141786845,0.29336448,101990.0,101980.0,0.68635183]
[1734141787040,0.29336448,101990.0,101980.0,0.729257]
[1734141787340,0.17667932,101990.0,101980.0,0.729257]
[1734141787649,0.17717932,101990.0,101980.0,0.729257]
[1734141788254,0.17717932,101990.0,101980.0,1.02254215]
[1734141788638,0.17717932,101990.0,101980.0,0.78771232]
[1734141788839,0.00061497,101990.0,101980.0,0.87082677]
[1734141789038,0.00061497,101990.0,101980.0,0.79565513]
[1734141789246,0.00061497,101990.0,101980.0,0.94230636]
[1734141789648,0.00011497,101990.0,101980.0,0.94230636]
[1734141790652,0.00011497,101990.0,101980.0,1.25130291]
[1734141792044,0.00011497,101990.0,101980.0,1.46874146]
[1734141793854,0.00011497,101990.0,101980.0,1.15962352]
[1734141794150,0.39988503,102000.0,101990.0,0.049018]
[1734141794351,0.0394,102030.0,101990.0,0.5760469]
[1734141794554,0.0394,102030.0,102020.0,0.6440484]
[1734141794756,0.088398,102030.0,102020.0,0.6440484]
[1734141795151,0.08846876,102030.0,102020.0,0.6440484]
[1734141797045,0.17158321,102030.0,102020.0,0.2342454]
[1734141797249,0.049003,102020.0,102010.0,0.6440524]
[1734141797450,0.049003,102020.0,102010.0,0.64372391]
[1734141797648,0.089903,102020.0,102010.0,0.64372391]
[1734141797945,0.089903,102020.0,102010.0,0.59471691]
[1734141799750,0.08897076,102030.0,102020.0,0.049003]
[1734141799952,0.08897076,102030.0,102020.0,0.409803]
[1734141799953,0.00057076,102030.0,102020.0,0.409803]
[1734141800157,0.00057076,102030.0,102020.0,0.72683436]
[1734141800350,0.00057076,102030.0,102020.0,0.89745646]
[1734141800554,0.00057076,102030.0,102020.0,1.04361807]
[1734141801553,0.12765566,102060.0,102040.0,0.04899]
[1734141801754,0.12765566,102060.0,102040.0,0.40979]
[1734141802459,7.71e-05,102050.0,102040.0,0.40979]
[1734141803046,0.13218055,102050.0,102040.0,0.3608]
[1734141803849,0.0490661,102050.0,102040.0,0.3608]
[1734141804958,0.0490661,102050.0,102040.0,0.409794]
[1734141805160,7.71e-05,102050.0,102040.0,0.409794]
[1734141805659,7.71e-05,102050.0,102040.0,0.86157768]
[1734141805859,7.71e-05,102050.0,102040.0,0.81826323]
[1734141810165,7.71e-05,102050.0,102040.0,0.90137768]
[1734141810361,7.71e-05,102050.0,102040.0,1.09065637]
[1734141811064,7.71e-05,102050.0,102040.0,1.23736714]
[1734141811766,7.71e-05,102050.0,102040.0,1.25208714]
[1734141813261,7.71e-05,102050.0,102040.0,0.85826323]
[1734141813865,7.71e-05,102050.0,102040.0,0.81826323]
[1734141814369,7.71e-05,102050.0,102040.0,0.77846323]
[1734141814669,0.0005771,102050.0,102040.0,0.77846323]
[1734141816260,0.0495661,102050.0,102040.0,0.77846323]
[1734141816465,0.0399771,102050.0,102040.0,0.77846323]
[1734141817267,0.0005771,102050.0,102040.0,0.86157768]
[1734141817462,0.0005771,102050.0,102040.0,0.77846323]
[1734141818264,0.0495661,102050.0,102040.0,0.77846323]
[1734141818874,0.0495661,102050.0,102040.0,0.770594]
[1734141819168,0.0495661,102050.0,102040.0,0.7216]
[1734141820664,0.0495661,102050.0,102040.0,0.770594]
[1734141821666,0.0490661,102050.0,102040.0,0.770594]
[1734141822469,0.13218055,102050.0,102040.0,0.7216]
[1734141822662,0.13218055,102050.0,102040.0,0.3608]
[1734141822866,0.048994,102040.0,102030.0,0.59429433]
[1734141823059,0.048998,102030.0,102020.0,0.28249733]
[1734141823373,0.088598,102030.0,102020.0,0.64329733]
[1734141823773,0.088598,102030.0,102020.0,0.65092812]
[1734141824073,0.088598,102030.0,102020.0,0.60192512]
[1734141824666,0.088598,102030.0,102020.0,0.65092812]
[1734141827881,0.088598,102030.0,102020.0,0.88710108]
[1734141828071,0.12271445,102030.0,102010.0,1.02816368]
[1734141828276,0.049003,102020.0,102010.0,0.97915668]
[1734141828576,0.049003,102020.0,102010.0,0.74566235]
[1734141828782,0.049003,102020.0,102010.0,0.74616235]
[1734141829675,0.049003,102020.0,102010.0,0.74566235]
[1734141829878,0.049003,102020.0,102010.0,0.79467035]
[1734141830679,0.049003,102020.0,102010.0,0.79517035]
[1734141831675,0.049003,102020.0,102010.0,0.75176518]
[1734141832475,0.78311923,102040.0,102030.0,0.048998]
[1734141832476,0.29630478,102040.0,102030.0,0.048998]
[1734141832675,0.17927272,102050.0,102030.0,1.00492816]
[1734141832881,0.0916681,102050.0,102040.0,0.3608]
[1734141833469,0.0916681,102050.0,102030.0,0.88793691]
[1734141833470,0.17478255,102050.0,102030.0,0.88793691]
[1734141833678,0.17478255,102050.0,102020.0,0.27723533]
[1734141833679,0.048998,102030.0,102020.0,0.27723533]
[1734141833884,0.13211245,102030.0,102020.0,0.27723533]
[1734141834091,0.21671245,102030.0,102020.0,0.59513016]
[1734141834687,0.21671245,102030.0,102020.0,0.23433016]
[1734141835278,0.21671245,102030.0,102010.0,0.41795543]
[1734141835480,0.049003,102020.0,102010.0,0.71090023]
[1734141835785,0.049003,102020.0,102010.0,0.94471639]
[1734141836399,0.049003,102020.0,102010.0,0.71040023]
[1734141836692,0.049003,102020.0,102010.0,0.71090023]
[1734141836888,0.13211745,102020.0,102010.0,0.6542448]
[1734141837089,0.13219455,102020.0,102010.0,0.2347888]
[1734141837488,0.13219455,102020.0,102010.0,0.0005]
[1734141837683,0.049008,102010.0,102000.0,0.93502434]
[1734141837880,0.13212245,102010.0,102000.0,0.93502434]
[1734141838791,0.13212245,102010.0,102000.0,0.89211917]
[1734141840687,0.13212245,102010.0,102000.0,0.89261917]
[1734141841484,0.13212245,102010.0,102000.0,0.64257954]
[1734141841690,0.13212245,102010.0,102000.0,0.59917437]
[1734141841896,0.13212245,102010.0,102000.0,0.77479941]
[1734141842193,0.49292245,102010.0,102000.0,0.17971061]
[1734141842392,0.79292245,102010.0,102000.0,0.00408557]
[1734141842782,0.79292245,102010.0,102000.0,0.00458557]
[1734141843787,0.79292245,102010.0,102000.0,0.00408557]
[1734141844090,0.49292245,102010.0,102000.0,0.00408557]
[1734141844395,0.049008,102010.0,102000.0,0.58952361]
[1734141844599,0.049008,102010.0,102000.0,0.82381241]
[1734141844898,0.049008,102010.0,102000.0,0.64868737]
[1734141845089,0.13212245,102010.0,102000.0,0.64427437]
[1734141845292,0.13212245,102010.0,102000.0,0.59967437]
[1734141845795,0.13212245,102010.0,102000.0,0.77521853]
[1734141846099,0.13212245,102010.0,102000.0,0.18012973]
[1734141846297,0.13212245,102010.0,102000.0,0.41441853]
[1734141847492,0.13212245,102010.0,102000.0,0.18012973]
[1734141847692,0.17522245,102010.0,102000.0,0.18012973]
[1734141848689,0.17522245,102010.0,102000.0,0.17962973]
[1734141849197,0.47522245,102010.0,102000.0,0.17962973]
[1734141849387,0.17522245,102010.0,102000.0,0.17962973]
[1734141849795,0.47522245,102010.0,102000.0,0.17962973]
[1734141849991,0.83602245,102010.0,102000.0,0.17962973]
[1734141850186,0.47522245,102010.0,102000.0,0.17962973]
[1734141850499,0.83602245,102010.0,102000.0,0.17962973]
[1734141850801,0.87692245,102010.0,102000.0,0.17962973]
[1734141851994,0.049008,102010.0,102000.0,0.59917437]
[1734141852199,0.13212245,102010.0,102000.0,1.24424957]
[1734141852394,0.049008,102010.0,102000.0,1.00996077]
[1734141852792,0.049008,102010.0,102000.0,0.79104337]
[1734141852988,0.049008,102010.0,102000.0,1.00940145]
[1734141853192,0.049008,102010.0,102000.0,1.36093521]
[1734141853600,0.049008,102010.0,102000.0,0.96038845]
[1734141854100,0.13212245,102010.0,102000.0,0.96038845]
[1734141858808,0.049008,102010.0,102000.0,0.96038845]
[1734141859006,0.049008,102010.0,102000.0,1.31192221]
[1734141860610,0.049008,102010.0,102000.0,1.36093521]
[1734141862403,0.049008,102010.0,102000.0,1.06799041]
[1734141863401,0.049008,102010.0,102000.0,1.32826488]
[1734141865307,0.049008,102010.0,102000.0,1.06799041]
[1734141867410,0.049008,102010.0,102000.0,1.32826488]
[1734141867914,0.049008,102010.0,102000.0,1.37115546]
[1734141868209,0.049008,102010.0,102000.0,1.32826488]
[1734141869510,0.13212245,102010.0,102000.0,1.27925188]
[1734141870806,0.13212245,102010.0,102000.0,1.32214246]
[1734141871715,0.049008,102010.0,102000.0,1.32214246]
[1734141871915,0.14501105,102020.0,102000.0,1.37115246]
[1734141872208,0.14501105,102020.0,102010.0,0.76134176]
[1734141872209,0.0490821,102020.0,102010.0,0.76134176]
[1734141872518,0.0490821,102020.0,102010.0,1.24063914]
[1734141872706,0.0490821,102020.0,102010.0,1.28533914]
[1734141873313,0.0490821,102020.0,102010.0,1.32894254]
[1734141873512,0.0490821,102020.0,102010.0,1.286056]
[1734141874918,0.0490821,102020.0,102010.0,1.28482373]
[1734141875411,7.71e-05,102020.0,102010.0,1.28482373]
[1734141875712,7.71e-05,102020.0,102010.0,0.7144739]
[1734141875919,7.71e-05,102020.0,102010.0,1.16748316]
[1734141876210,7.71e-05,102020.0,102010.0,0.75736044]
[1734141877416,7.71e-05,102020.0,102010.0,1.16748316]
[1734141877802,7.71e-05,102020.0,102010.0,0.75736044]
[1734141878007,7.71e-05,102020.0,102010.0,0.7144739]
[1734141880011,7.71e-05,102020.0,102010.0,0.72264759]
[1734141880512,0.08319155,102020.0,102010.0,1.07470122]
[1734141880714,0.13219455,102020.0,102010.0,0.98099322]
[1734141881024,0.13219455,102020.0,102010.0,1.19870692]
[1734141881813,7.71e-05,102020.0,102010.0,0.98774902]
[1734141882012,7.71e-05,102020.0,102010.0,0.67637709]
[1734141882219,7.71e-05,102020.0,102010.0,0.72027709]
[1734141882612,7.71e-05,102020.0,102010.0,1.07991016]
[1734141882914,7.71e-05,102020.0,102010.0,0.72778709]
[1734141883217,7.71e-05,102020.0,102010.0,0.77067363]
[1734141883419,7.71e-05,102020.0,102010.0,0.77651363]
[1734141884321,7.71e-05,102020.0,102010.0,1.18663635]
[1734141884514,0.08319155,102020.0,102010.0,0.73261363]
[1734141884715,0.13219455,102020.0,102010.0,0.95035579]
[1734141884921,0.13219455,102020.0,102010.0,1.30244727]
[1734141887316,0.08319155,102020.0,102010.0,1.30244727]
[1734141888821,0.08319155,102020.0,102010.0,1.24718304]
[1734141888822,0.13219455,102020.0,102010.0,1.24718304]
[1734141889219,0.13219455,102020.0,102010.0,0.87700245]
[1734141889615,0.21978304,102020.0,102010.0,0.52491097]
[1734141889810,0.21978304,102020.0,102010.0,0.75969531]
[1734141893016,0.22789267,102020.0,102010.0,0.54160071]
[1734141894818,0.59005267,102020.0,102010.0,0.54160071]
[1734141895016,0.59005267,102020.0,102010.0,0.95140871]
[1734141895228,0.50246418,102020.0,102010.0,1.28879603]
[1734141895729,0.50246418,102020.0,102010.0,1.28763026]
[1734141896220,0.50246418,102020.0,102010.0,1.25505046]
[1734141897718,0.50246418,102020.0,102010.0,1.29793828]
[1734141898131,0.50246418,102020.0,102010.0,1.29792681]
[1734141898630,0.50246418,102020.0,102010.0,0.72693239]
[1734141898824,0.41934973,102020.0,102010.0,0.94454381]
[1734141899019,0.4112401,102020.0,102010.0,0.94454381]
[1734141899229,0.0490801,102020.0,102010.0,0.77253239]
[1734141899829,0.0490801,102020.0,102010.0,0.72964457]
[1734141900223,0.0490801,102020.0,102010.0,1.2995491]
[1734141900731,0.0490801,102020.0,102010.0,1.08175174]
[1734141900931,0.0490801,102020.0,102010.0,1.09039872]
[1734141901527,7.71e-05,102020.0,102010.0,1.18915246]
[1734141902231,7.71e-05,102020.0,102010.0,0.77902974]
[1734141902431,7.71e-05,102020.0,102010.0,0.73614192]
[1734141904233,0.13219455,102020.0,102010.0,0.63288694]
[1734141904427,0.13219455,102020.0,102010.0,1.20297481]
[1734141904932,0.0490801,102020.0,102010.0,1.20297481]
[1734141905129,0.0490801,102020.0,102010.0,1.25198281]
[1734141905523,0.0490801,102020.0,102010.0,1.29468281]
[1734141905930,0.0490801,102020.0,102010.0,1.29504469]
[1734141906734,0.0490801,102020.0,102010.0,1.07715243]
[1734141906945,0.0490801,102020.0,102010.0,1.29494192]
[1734141907728,0.13219455,102020.0,102010.0,1.29494192]
[1734141908935,0.0490801,102020.0,102010.0,1.29494192]
[1734141909529,0.13219455,102020.0,102010.0,1.20323392]
[1734141913049,0.13219455,102020.0,102010.0,0.58323938]
[1734141913255,0.21978304,102020.0,102010.0,0.52471151]
[1734141913556,0.0490801,102020.0,102010.0,0.93451951]
[1734141913751,0.0490801,102020.0,102010.0,0.9258194]
[1734141913945,0.0490801,102020.0,102010.0,1.2866194]
[1734141914144,0.0490801,102020.0,102010.0,1.2865999]
[1734141914458,0.13219455,102020.0,102010.0,1.25443938]
[1734141914646,0.13219455,102020.0,102010.0,0.99304738]
[1734141914851,0.13219455,102020.0,102010.0,1.03644738]
[1734141915256,0.13219455,102020.0,102010.0,1.03774162]
[1734141915557,0.0490801,102020.0,102010.0,1.03774162]
[1734141916057,0.0490801,102020.0,102010.0,0.98873362]
[1734141917450,0.0490801,102020.0,102010.0,1.34225572]
[1734141917451,7.71e-05,102020.0,102010.0,1.34225572]
[1734141917650,7.71e-05,102020.0,102010.0,1.26432114]
[1734141917959,0.1458142,102040.0,102010.0,1.67495778]
[1734141918253,0.1458142,102040.0,102030.0,0.6543266]
[1734141918955,0.1453142,102040.0,102030.0,0.6543266]
[1734141919759,0.05822571,102040.0,102030.0,0.6671266]
[1734141920757,0.05772571,102040.0,102030.0,0.6671266]
[1734141921255,0.1453142,102040.0,102030.0,0.6671266]
[1734141921876,0.1458142,102040.0,102030.0,0.6671266]
[1734141922756,0.1453142,102040.0,102030.0,0.6671266]
[1734141923558,0.22842865,102040.0,102030.0,0.6671266]
[1734141923756,0.22892865,102040.0,102030.0,0.6671266]
[1734141924763,0.22842865,102040.0,102030.0,0.6671266]
[1734141925358,0.1453142,102040.0,102030.0,0.6671266]
[1734141925752,0.1458142,102040.0,102030.0,0.7113266]
[1734141926257,0.0005,102040.0,102030.0,1.52028362]
[1734141926583,0.0005,102040.0,102030.0,1.2115517]
[1734141927555,0.0005,102040.0,102030.0,1.12843725]
[1734141927756,0.048994,102040.0,102030.0,1.2229202]
[1734141928153,0.048991,102050.0,102030.0,1.2229202]
[1734141928357,0.048991,102050.0,102040.0,1.00580194]
[1734141928783,0.049491,102050.0,102040.0,1.00580194]
[1734141928959,0.049491,102050.0,102040.0,0.65397974]
[1734141929666,0.13260545,102050.0,102040.0,0.65397974]
[1734141929902,0.13210545,102050.0,102040.0,0.65397974]
[1734141930094,0.14054226,102050.0,102040.0,0.65397974]
[1734141930866,0.18484226,102050.0,102040.0,0.65397974]
[1734141931069,0.23184226,102050.0,102040.0,0.65397974]
[1734141931269,0.27484226,102050.0,102040.0,0.3608]
[1734141931865,0.27434226,102050.0,102040.0,0.3608]
[1734141932574,0.27434226,102050.0,102040.0,0.59518935]
[1734141932869,0.27484226,102050.0,102040.0,0.59518935]
[1734141933867,0.14822781,102050.0,102040.0,0.59518935]
[1734141934980,0.14872781,102050.0,102040.0,0.59518935]
[1734141936864,0.05792781,102050.0,102040.0,0.64418335]
[1734141937265,0.05792781,102050.0,102040.0,0.69008335]
[1734141937768,0.05792781,102050.0,102040.0,0.74887374]
[1734141937970,0.05742781,102050.0,102040.0,0.74887374]
[1734141938165,0.05742781,102050.0,102040.0,1.10069594]
[1734141938768,0.05742781,102050.0,102040.0,0.69987974]
[1734141939067,0.14054226,102050.0,102040.0,0.69987974]
[1734141939592,0.14054226,102050.0,102040.0,0.88831585]
[1734141939767,0.23174226,102050.0,102040.0,0.88831585]
[1734141940074,0.23174226,102050.0,102040.0,0.59513611]
[1734141940675,0.23174226,102050.0,102040.0,0.88831585]
[1734141942167,0.14862781,102050.0,102040.0,0.88831585]
[1734141943377,0.14862781,102050.0,102040.0,0.23433611]
[1734141943576,0.14862781,102050.0,102040.0,0.88831585]
[1734141943774,0.14862781,102050.0,102040.0,0.53334585]
[1734141944771,0.14862781,102050.0,102040.0,0.29900974]
[1734141945478,0.14862781,102050.0,102040.0,0.53357149]
[1734141945693,0.14862781,102050.0,102040.0,0.29900974]
[1734141945977,0.14862781,102050.0,102040.0,0.54032489]
[1734141946273,0.05742781,102050.0,102040.0,0.95011889]
[1734141946479,0.05742781,102050.0,102040.0,0.71548374]
[1734141946779,0.05742781,102050.0,102040.0,1.11330594]
[1734141947567,0.05742781,102050.0,102040.0,0.8201262]
[1734141949279,0.05742781,102050.0,102040.0,0.7711322]
[1734141950076,0.05742781,102050.0,102040.0,1.02855423]
[1734141952186,0.05742781,102050.0,102040.0,1.02828076]
[1734141955084,0.05742781,102050.0,102040.0,1.13172189]
[1734141955878,0.05742781,102050.0,102040.0,1.13163544]
[1734141956885,0.05742781,102050.0,102040.0,1.13171961]
[1734141957882,0.05742781,102050.0,102040.0,0.77989741]
[1734141959475,0.05742781,102050.0,102040.0,1.13238197]
[1734141960078,0.05742781,102050.0,102040.0,0.77989741]
[1734141960783,0.05742781,102050.0,102040.0,1.13237297]
[1734141960983,0.35170428,102060.0,102050.0,0.048989]
[1734141960984,0.13654793,102060.0,102050.0,0.048989]
[1734141961290,0.048988,102060.0,102050.0,1.12083033]
[1734141962083,0.048988,102060.0,102050.0,1.16773033]
[1734141962278,0.048988,102060.0,102050.0,1.17425033]
[1734141962792,0.24544219,102060.0,102050.0,0.71976792]
[1734141963000,0.29084219,102060.0,102050.0,1.01339021]
[1734141963288,0.23639506,102060.0,102050.0,1.01922021]
[1734141964288,0.23639506,102060.0,102050.0,0.66677229]
[1734141965390,0.26492347,102060.0,102050.0,0.66677229]
[1734141965891,0.38170813,102060.0,102050.0,0.66677229]
[1734141966087,0.74250813,102060.0,102050.0,0.30597229]
[1734141966693,0.6549482,102060.0,102050.0,0.54089927]
[1734141966889,0.80092902,102060.0,102050.0,0.24727698]
[1734141970793,0.6549482,102060.0,102050.0,0.24727698]
[1734141971094,0.80092902,102060.0,102050.0,0.24727698]
[1734141971294,0.6549482,102060.0,102050.0,0.24727698]
[1734141971691,0.80092902,102060.0,102050.0,0.24727698]
[1734141972295,0.6549482,102060.0,102050.0,0.24727698]
[1734141972490,0.80092902,102060.0,102050.0,0.24727698]
[1734141972899,0.81564902,102060.0,102050.0,0.24727698]
[1734141973400,1.11564902,102060.0,102050.0,0.24727698]
[1734141973894,0.3088682,102060.0,102050.0,0.24727698]
[1734141974897,0.6696682,102060.0,102050.0,0.24727698]
[1734141975102,0.81564902,102060.0,102050.0,0.24727698]
[1734141975398,1.25701689,102060.0,102040.0,0.07785715]
[1734141975594,0.68475636,102050.0,102030.0,0.14293698]
[1734141975790,0.68475636,102050.0,102020.0,0.27672872]
[1734141975791,0.048999,102030.0,102020.0,0.23384392]
[1734141975998,0.049003,102020.0,102010.0,0.08828821]
[1734141976197,0.25302612,102020.0,102010.0,0.0454]
[1734141976404,0.13643676,102020.0,102010.0,0.0454]
[1734141976607,0.13643676,102020.0,102010.0,0.4062]
[1734141977609,0.049003,102020.0,102010.0,0.4062]
[1734141980103,0.049003,102020.0,102010.0,0.4067]
[1734141982805,0.13197854,102020.0,102010.0,0.0005]
[1734141983012,0.049008,102010.0,102000.0,8.557e-05]
[1734141983309,0.6703242,102010.0,102000.0,8.557e-05]
[1734141984608,0.78691356,102010.0,102000.0,8.557e-05]
[1734141985509,1.0311242,102010.0,102000.0,8.557e-05]
[1734141985709,1.0312092,102010.0,102000.0,5.7e-07]
[1734141985903,1.14779856,102010.0,102000.0,5.7e-07]
[1734141986098,1.5307741,102010.0,102000.0,5.7e-07]
[1734141986305,0.049027,101970.0,101960.0,0.499]
[1734141986508,0.049027,101970.0,101960.0,0.15829444]
[1734141986706,0.049027,101970.0,101960.0,0.16695148]
[1734141989308,0.04911257,101970.0,101960.0,0.14685704]
[1734141990007,0.40991257,101970.0,101960.0,0.14685704]
[1734141990314,0.40991257,101970.0,101960.0,0.0915]
[1734141990315,0.49288811,101970.0,101960.0,0.0915]
[1734141990708,0.13208811,101970.0,101960.0,0.0915]
[1734141991112,0.49288811,101970.0,101960.0,0.0915]
[1734141991915,0.13208811,101970.0,101960.0,0.0915]
[1734141992509,0.04911257,101970.0,101960.0,0.0915]
[1734141992803,0.04911257,101970.0,101960.0,0.501332]
[1734141993003,0.04911257,101970.0,101960.0,0.4523]
[1734141994408,0.04911257,101970.0,101960.0,0.501332]
[1734141994918,0.04911257,101970.0,101960.0,0.501832]
[1734141995513,0.049023,101980.0,101970.0,0.049027]
[1734141995717,0.049023,101980.0,101970.0,0.409827]
[1734141996217,0.049018,101990.0,101980.0,0.049023]
[1734141996415,0.049018,101990.0,101980.0,0.456623]
[1734141999119,0.084447,102000.0,101980.0,0.456623]
[1734141999324,0.05048646,102000.0,101990.0,0.0881]
[1734142000317,0.049015,102000.0,101990.0,0.497918]
[1734142000517,0.13199054,102000.0,101990.0,0.4489]
[1734142000735,0.13199054,102000.0,101990.0,0.0881]
[1734142002121,0.13199054,102000.0,101990.0,0.137118]
[1734142002722,0.049015,102000.0,101990.0,0.137118]
[1734142003424,0.50576499,102010.0,102000.0,0.049013]
[1734142003619,0.05788639,102010.0,102000.0,0.049013]
[1734142004226,0.05788639,102010.0,102000.0,0.409813]
[1734142004423,0.05788639,102010.0,102000.0,0.3608]
[1734142004723,0.14086193,102010.0,102000.0,0.3608]